fUSD/lending_fUSD_20251201
["ID","MTS","AMOUNT","RATE_DAILY","PERIOD"]
[395212136,1764547475624,202.0,9.989e-05,2]
[395212137,1764547476421,202.0,9.989e-05,2]
[395212489,1764547833051,-267.72,0.00014235,2]
[395212490,1764547833062,-179.331605,0.00014235,2]
[395212491,1764547833075,-463.61512644,0.00014235,2]
[395212492,1764547833088,-601.110019,0.00014235,2]
[395212493,1764547833100,-2796.65324956,0.00014235,2]
[395212494,1764547833110,-155.09,0.00014369,2]
[395212495,1764547833119,-206.0,0.00014369,2]
[395212496,1764547833129,-170.89910719,0.00014738,2]
[395212497,1764547833139,-195.0,0.00014777,2]
[395212498,1764547833148,-250.17834325,0.00014805,2]
[395212499,1764547833189,-896.70600002,0.00014805,2]
[395212500,1764547833200,-267.99999991,0.00014805,2]
[395212501,1764547833212,-295.0,0.00014805,2]
[395212502,1764547833229,-410.83529828,0.00014805,2]
[395212503,1764547833241,-500.0,0.00014816,2]
[395212504,1764547833251,-300.0,0.00014816,2]
[395212505,1764547833263,-864.23889215,0.00014816,2]
[395212506,1764547833275,-277.72917998,0.00014816,2]
[395212507,1764547833286,-459.69,0.00014817,2]
[395212508,1764547833298,-300.0,0.00014838,2]
[395212509,1764547833309,-300.0,0.00014838,2]
[395212510,1764547833320,-195.0,0.00014853,2]
[395212511,1764547833332,-318.11,0.00014889,2]
[395212512,1764547833344,-300.0,0.00014915,2]
[395212513,1764547833355,-1200.0,0.00014915,2]
[395212514,1764547833367,-150.0,0.00014916,2]
[395212515,1764547833379,-252.0,0.00014916,2]
[395212516,1764547833390,-250.0,0.00014947,2]
[395212517,1764547833404,-500.0,0.00014993,2]
[395212518,1764547833414,-500.0,0.00014993,2]
[395212519,1764547833429,-150.99,0.00014993,2]
[395212520,1764547833439,-7958.75,0.00015054,2]
[395212521,1764547833450,-170.89910717,0.00015095,2]
[395212522,1764547833461,-1250.0,0.00015166,2]
[395212523,1764547833473,-1250.0,0.00015166,2]
[395212524,1764547833484,-1250.0,0.00015166,2]
[395212525,1764547833494,-1250.0,0.00015166,2]
[395212526,1764547833504,-1250.0,0.00015166,2]
[395212527,1764547833515,-1250.0,0.00015166,2]
[395212528,1764547833526,-153.0,0.00015166,2]
[395212529,1764547833537,-155.09,0.00015167,2]
[395212530,1764547833549,-206.18,0.00015228,2]
[395212531,1764547833561,-150.0,0.00015288,2]
[395212532,1764547833573,-150.0,0.00015288,2]
[395212533,1764547833585,-150.0,0.00015288,2]
[395212534,1764547833596,-211.35417377,0.00015288,2]
[395212535,1764547833614,-150.0,0.00015288,2]
[395212536,1764547833626,-150.0,0.00015288,2]
[395212537,1764547833637,-150.0,0.00015288,2]
[395212538,1764547833648,-150.0,0.00015288,2]
[395212539,1764547833659,-150.0,0.00015288,2]
[395212540,1764547833670,-150.0,0.00015288,2]
[395212541,1764547833688,-150.0,0.00015288,2]
[395212542,1764547833699,-150.0,0.00015288,2]
[395212543,1764547833710,-150.0,0.00015288,2]
[395212544,1764547833722,-150.0,0.00015288,2]
[395212545,1764547833732,-150.0,0.00015288,2]
[395212546,1764547833740,-150.0,0.00015312,2]
[395212547,1764547833749,-150.0,0.00015322,2]
[395212548,1764547833758,-150.0,0.00015336,2]
[395212549,1764547833767,-150.0,0.00015336,2]
[395212550,1764547833779,-150.0,0.00015344,2]
[395212551,1764547833789,-150.0,0.00015346,2]
[395212552,1764547833800,-150.0,0.00015356,2]
[395212553,1764547833811,-150.0,0.00015356,2]
[395212554,1764547833821,-150.0,0.00015359,2]
[395212555,1764547833832,-150.0,0.00015369,2]
[395212556,1764547833841,-150.0,0.00015383,2]
[395212557,1764547833852,-150.0,0.00015385,2]
[395212558,1764547833863,-150.0,0.0001539,2]
[395212559,1764547833874,-150.0,0.00015401,2]
[395212560,1764547833884,-150.0,0.00015405,2]
[395212561,1764547833895,-150.0,0.00015407,2]
[395212562,1764547833907,-150.0,0.00015424,2]
[395212563,1764547833917,-150.0,0.00015424,2]
[395212564,1764547833935,-150.0,0.00015429,2]
[395212565,1764547833946,-150.0,0.00015431,2]
[395212566,1764547833957,-376.04614137,0.00015432,2]
[395212567,1764547833969,-500.0,0.00015432,2]
[395212568,1764547833980,-495.47510266,0.00015432,2]
[395212569,1764547833992,-500.0,0.00015432,2]
[395212570,1764547834002,-621.93327468,0.00015432,2]
[395212571,1764547834019,-500.0,0.00015432,2]
[395212572,1764547834030,-500.0,0.00015432,2]
[395212573,1764547834040,-500.0,0.00015432,2]
[395212574,1764547834051,-500.0,0.00015432,2]
[395212575,1764547834066,-500.0,0.00015432,2]
[395212576,1764547834076,-196.56338126,0.00015432,2]
[395212577,1764547834087,-500.0,0.00015432,2]
[395212578,1764547834097,-500.0,0.00015432,2]
[395212579,1764547834107,-500.0,0.00015432,2]
[395212580,1764547834117,-500.0,0.00015432,2]
[395212581,1764547834128,-500.0,0.00015432,2]
[395212582,1764547834139,-500.0,0.00015432,2]
[395212583,1764547834149,-178573.02498193,0.00015433,2]
[395212584,1764547834163,-11830.05385394,0.00015433,2]
[395212585,1764547834180,-5479.6797928,0.00015433,2]
[395212586,1764547834194,-499.9999993,0.00015433,2]
[395212587,1764547834203,-3157.84528586,0.00015433,2]
[395212588,1764547834214,-250.0,0.00015433,2]
[395212589,1764547834235,-500.0,0.00015432,2]
[395212590,1764547834248,-186.38142854,0.00015432,2]
[395212591,1764547834256,-859.99464251,0.00015433,2]
[395212592,1764547834283,-345.32446194,0.0001535,2]
[395212593,1764547834291,-376.27443079,0.00015433,2]
[395212598,1764547838903,-28222.85988698,0.00015433,2]
[395212599,1764547838916,-142837.86822649,0.00015433,2]
[395212600,1764547838933,-8464.37943033,0.00015433,2]
[395212601,1764547838946,-7245.49005,0.00015433,2]
[395212602,1764547838959,-846.33812054,0.00015433,2]
[395212603,1764547838972,-9935.90667805,0.00015433,2]
[395212604,1764547838989,-7354.23009166,0.00015433,2]
[395212605,1764547839007,-6754.04775799,0.00015433,2]
[395212606,1764547839035,-787.45606742,0.00015433,2]
[395212607,1764547839051,-115371.85596248,0.00015433,2]
[395212608,1764547839064,-1618.96501068,0.00015433,2]
[395212609,1764547839077,-280.26105123,0.00015433,2]
[395212610,1764547839090,-89500.0,0.00015433,2]
[395212611,1764547839103,-895.5214939,0.00015433,2]
[395212612,1764547839115,-23637.39674984,0.00015433,2]
[395212613,1764547839128,-1407.98186965,0.00015433,2]
[395212614,1764547839148,-605.50146086,0.00015433,2]
[395212615,1764547839161,-1859.4735301,0.00015433,2]
[395212616,1764547839174,-111347.59357467,0.00015433,2]
[395212617,1764547839191,-150.0,0.00015433,2]
[395212618,1764547839202,-150.0,0.00015449,2]
[395212619,1764547839213,-500.0,0.0001545,2]
[395212620,1764547839224,-10316.03731815,0.00015451,2]
[395212621,1764547839234,-170.89910717,0.00015451,2]
[395212622,1764547839244,-150.0,0.00015455,2]
[395212623,1764547839255,-150.0,0.00015458,2]
[395212624,1764547839265,-150.0,0.00015458,2]
[395212626,1764547839275,-150.0,0.00015458,2]
[395212628,1764547839286,-150.0,0.00015463,2]
[395212630,1764547839297,-150.0,0.00015479,2]
[395212632,1764547839307,-150.0,0.00015482,2]
[395212634,1764547839317,-150.0,0.00015492,2]
[395212636,1764547839329,-150.0,0.00015492,2]
[395212638,1764547839341,-150.0,0.00015503,2]
[395212640,1764547839352,-150.0,0.00015514,2]
[395212642,1764547839364,-150.0,0.00015522,2]
[395212644,1764547839375,-500.0,0.00015524,2]
[395212646,1764547839386,-500.0,0.00015524,2]
[395212648,1764547839397,-500.0,0.00015524,2]
[395212650,1764547839408,-500.0,0.00015524,2]
[395212652,1764547839419,-500.0,0.00015524,2]
[395212654,1764547839436,-200.0,0.00015524,2]
[395212657,1764547839447,-500.0,0.00015524,2]
[395212659,1764547839458,-500.0,0.00015524,2]
[395212662,1764547839467,-500.0,0.00015524,2]
[395212663,1764547839478,-500.0,0.00015524,2]
[395212665,1764547839488,-500.0,0.00015524,2]
[395212667,1764547839499,-500.0,0.00015524,2]
[395212669,1764547839510,-500.0,0.00015524,2]
[395212671,1764547839520,-500.0,0.00015524,2]
[395212673,1764547839531,-151.0,0.00015524,2]
[395212675,1764547839541,-151.0,0.00015524,2]
[395212676,1764547839552,-151.0,0.00015524,2]
[395212678,1764547839563,-151.0,0.00015524,2]
[395212681,1764547839574,-151.0,0.00015524,2]
[395212682,1764547839585,-151.0,0.00015524,2]
[395212684,1764547839596,-200.0,0.00015524,2]
[395212686,1764547839607,-151.0,0.00015524,2]
[395212689,1764547839618,-151.0,0.00015524,2]
[395212690,1764547839628,-151.0,0.00015524,2]
[395212692,1764547839642,-151.0,0.00015524,2]
[395212694,1764547839653,-151.0,0.00015524,2]
[395212696,1764547839664,-151.0,0.00015524,2]
[395212698,1764547839674,-151.0,0.00015524,2]
[395212700,1764547839692,-151.0,0.00015524,2]
[395212702,1764547839703,-500.0,0.00015524,2]
[395212704,1764547839713,-500.0,0.00015524,2]
[395212706,1764547839723,-500.0,0.00015524,2]
[395212708,1764547839734,-500.0,0.00015524,2]
[395212710,1764547839746,-223.06842743,0.00015524,2]
[395212712,1764547839756,-200.0,0.00015524,2]
[395212714,1764547839766,-150.0,0.00015525,2]
[395212716,1764547839777,-150.0,0.00015527,2]
[395212718,1764547839787,-150.0,0.0001553,2]
[395212720,1764547839797,-150.0,0.0001553,2]
[395212722,1764547839807,-421.67268594,0.00015532,2]
[395212724,1764547839818,-151163.22240206,0.00015533,2]
[395212726,1764547839828,-150.0,0.00015551,2]
[395212728,1764547839838,-827.0,0.00015556,2]
[395212730,1764547839847,-150.0,0.00015559,2]
[395212732,1764547839857,-150.0,0.00015559,2]
[395212734,1764547839867,-150.0,0.00015571,2]
[395212735,1764547839877,-150.0,0.00015571,2]
[395212737,1764547839887,-150.0,0.00015571,2]
[395212739,1764547839897,-150.0,0.00015571,2]
[395212741,1764547839907,-150.0,0.00015575,2]
[395212742,1764547839917,-150.0,0.00015579,2]
[395212743,1764547839934,-150.0,0.00015581,2]
[395212744,1764547839945,-150.0,0.00015593,2]
[395212745,1764547839955,-150.0,0.00015599,2]
[395212746,1764547839965,-150.0,0.00015611,2]
[395212747,1764547839976,-10316.03731807,0.00015612,2]
[395212748,1764547839987,-150.0,0.00015623,2]
[395212749,1764547839997,-150.0,0.00015627,2]
[395212750,1764547840009,-150.0,0.00015627,2]
[395212751,1764547840022,-150.0,0.00015627,2]
[395212752,1764547840032,-150.0,0.00015627,2]
[395212753,1764547840042,-150.0,0.00015627,2]
[395212754,1764547840055,-150.0,0.00015639,2]
[395212756,1764547840066,-150.0,0.00015647,2]
[395212757,1764547840076,-1000.0,0.00015648,2]
[395212758,1764547840088,-150.0,0.00015661,2]
[395212759,1764547840099,-150.0,0.0001567,2]
[395212760,1764547840111,-150.0,0.00015676,2]
[395212761,1764547840122,-150.0,0.00015684,2]
[395212762,1764547840132,-150.0,0.00015692,2]
[395212763,1764547840143,-150.0,0.00015694,2]
[395212765,1764547840155,-150.0,0.00015695,2]
[395212767,1764547840166,-150.0,0.00015695,2]
[395212769,1764547840176,-150.0,0.00015698,2]
[395212772,1764547840193,-150.0,0.00015712,2]
[395212775,1764547840204,-150.0,0.00015712,2]
[395212778,1764547840214,-150.0,0.00015718,2]
[395212780,1764547840224,-150.0,0.00015724,2]
[395212783,1764547840235,-150.0,0.00015729,2]
[395212786,1764547840245,-150.0,0.00015741,2]
[395212790,1764547840258,-150.0,0.00015742,2]
[395212793,1764547840268,-150.0,0.00015756,2]
[395212795,1764547840278,-617.44,0.00015763,2]
[395212797,1764547840289,-150.0,0.00015763,2]
[395212799,1764547840299,-150.0,0.00015763,2]
[395212801,1764547840309,-150.0,0.00015766,2]
[395212803,1764547840319,-150.0,0.00015773,2]
[395212805,1764547840330,-150.0,0.00015773,2]
[395212807,1764547840339,-10316.03731807,0.00015773,2]
[395212809,1764547840350,-150.0,0.0001579,2]
[395212810,1764547840360,-150.0,0.00015797,2]
[395212812,1764547840370,-150.0,0.00015797,2]
[395212815,1764547840381,-150.0,0.00015797,2]
[395212817,1764547840391,-164.00145343,0.00015805,2]
[395212821,1764547840401,-195.0,0.00015805,2]
[395212823,1764547840411,-150.0,0.00015814,2]
[395212825,1764547840421,-150.0,0.00015815,2]
[395212827,1764547840435,-150.0,0.00015822,2]
[395212829,1764547840446,-150.0,0.00015831,2]
[395212831,1764547840456,-150.0,0.00015831,2]
[395212833,1764547840466,-150.0,0.00015838,2]
[395212835,1764547840475,-166.22,0.00015848,2]
[395212837,1764547840485,-150.0,0.00015854,2]
[395212839,1764547840495,-150.0,0.00015854,2]
[395212841,1764547840504,-150.0,0.00015854,2]
[395212843,1764547840513,-150.0,0.00015854,2]
[395212845,1764547840523,-150.0,0.00015854,2]
[395212847,1764547840532,-150.0,0.00015854,2]
[395212849,1764547840542,-150.0,0.00015862,2]
[395212851,1764547840551,-577.303016,0.00015863,2]
[395212853,1764547840561,-150.0,0.00015865,2]
[395212855,1764547840571,-2500.0,0.00015865,2]
[395212857,1764547840580,-150.0,0.0001587,2]
[395212859,1764547840590,-150.0,0.00015873,2]
[395212861,1764547840600,-150.0,0.00015886,2]
[395212863,1764547840611,-150.0,0.00015899,2]
[395212865,1764547840621,-150.0,0.00015899,2]
[395212867,1764547840631,-318.14271754,0.000159,2]
[395212869,1764547840640,-318.14271754,0.000159,2]
[395212871,1764547840651,-876.0,0.00015906,2]
[395212873,1764547840661,-150.0,0.0001591,2]
[395212875,1764547840670,-150.0,0.00015911,2]
[395212877,1764547840685,-150.0,0.00015919,2]
[395212879,1764547840695,-150.0,0.00015932,2]
[395212881,1764547840705,-150.0,0.00015933,2]
[395212883,1764547840715,-150.0,0.00015934,2]
[395212885,1764547840724,-10316.03731807,0.00015934,2]
[395212887,1764547840733,-150.0,0.00015935,2]
[395212889,1764547840742,-827.7220169,0.00015949,4]
[395212891,1764547840752,-600.33935114,0.00015949,2]
[395212893,1764547840762,-26982.32145309,0.00015949,2]
[395212895,1764547840772,-150.0,0.00015958,2]
[395212897,1764547840782,-876.0,0.00015961,2]
[395212899,1764547840791,-206.18,0.00015963,2]
[395212901,1764547840800,-155.09,0.00015965,2]
[395212904,1764547840809,-876.0,0.00015966,2]
[395212907,1764547840819,-150.0,0.00015967,2]
[395212909,1764547840828,-150.0,0.00015967,2]
[395212912,1764547840838,-150.0,0.00015967,2]
[395212915,1764547840848,-150.0,0.00015967,2]
[395212919,1764547840858,-150.0,0.00015967,2]
[395212921,1764547840869,-150.0,0.00015981,2]
[395212925,1764547840881,-150.0,0.00015991,2]
[395212928,1764547840891,-150.0,0.00015995,2]
[395212931,1764547840901,-200.0,0.00016,2]
[395212934,1764547840912,-150.0,0.00016001,2]
[395212937,1764547840922,-150.0,0.00016005,2]
[395212940,1764547840936,-577.30301597,0.00016011,2]
[395212943,1764547840945,-150.0,0.00016016,2]
[395212945,1764547840955,-150.0,0.00016016,2]
[395212948,1764547840965,-150.0,0.00016024,2]
[395212951,1764547840976,-150.0,0.00016029,2]
[395212954,1764547840986,-255.0,0.00016035,2]
[395212956,1764547840996,-150.0,0.00016035,2]
[395212959,1764547841007,-150.0,0.00016035,2]
[395212962,1764547841022,-617.44,0.00016039,2]
[395212965,1764547841032,-151.0,0.00016046,2]
[395212968,1764547841041,-24245.42968902,0.00016048,2]
[395212971,1764547841051,-500.0,0.00016048,2]
[395212975,1764547841064,-500.0,0.00016048,2]
[395212976,1764547841077,-500.0,0.00016048,2]
[395212978,1764547841087,-500.0,0.00016048,2]
[395212980,1764547841100,-500.0,0.00016048,2]
[395212982,1764547841110,-500.0,0.00016048,2]
[395212984,1764547841120,-500.0,0.00016048,2]
[395212986,1764547841130,-500.0,0.00016048,2]
[395212988,1764547841141,-621.28,0.00016048,2]
[395212990,1764547841150,-621.28,0.00016048,2]
[395212992,1764547841160,-621.28,0.00016048,2]
[395212994,1764547841170,-621.28,0.00016048,2]
[395212997,1764547841185,-500.0,0.00016048,2]
[395212998,1764547841194,-500.0,0.00016048,2]
[395213000,1764547841204,-523.46773215,0.00016048,2]
[395213002,1764547841213,-500.0,0.00016048,2]
[395213005,1764547841223,-500.0,0.00016048,2]
[395213006,1764547841232,-500.0,0.00016048,2]
[395213008,1764547841242,-500.0,0.00016048,2]
[395213010,1764547841251,-500.0,0.00016048,2]
[395213012,1764547841260,-179.56772046,0.00016048,2]
[395213014,1764547841269,-500.0,0.00016048,2]
[395213016,1764547841279,-500.0,0.00016048,2]
[395213018,1764547841289,-552.02,0.00016048,2]
[395213020,1764547841298,-552.02,0.00016048,2]
[395213022,1764547841308,-1000.0,0.00016049,2]
[395213024,1764547841319,-32262.5826,0.00016049,2]
[395213027,1764547841329,-600.0,0.00016049,2]
[395213028,1764547841339,-150.0,0.00016049,2]
[395213031,1764547841350,-150.0,0.00016053,2]
[395213032,1764547841360,-26982.32145302,0.00016055,2]
[395213034,1764547841371,-150.0,0.00016064,2]
[395213036,1764547841383,-150.0,0.00016069,2]
[395213039,1764547841396,-200.0,0.00016072,2]
[395213040,1764547841406,-200.0,0.00016072,2]
[395213043,1764547841416,-876.0,0.00016074,2]
[395213045,1764547841430,-150.0,0.00016077,2]
[395213047,1764547841441,-552.02,0.00016078,2]
[395213048,1764547841450,-150.0,0.0001608,2]
[395213051,1764547841461,-186.8,0.00016089,2]
[395213052,1764547841471,-600.33935114,0.00016094,2]
[395213054,1764547841481,-10316.03731807,0.00016095,2]
[395213057,1764547841492,-150.0,0.00016097,2]
[395213058,1764547841503,-150.0,0.00016101,2]
[395213060,1764547841513,-150.0,0.00016103,2]
[395213062,1764547841523,-150.0,0.00016103,2]
[395213065,1764547841533,-150.0,0.00016108,2]
[395213067,1764547841543,-150.0,0.00016113,2]
[395213068,1764547841552,-1182.52,0.00016116,2]
[395213070,1764547841562,-150.0,0.00016125,2]
[395213072,1764547841572,-150.0,0.00016137,2]
[395213075,1764547841582,-150.0,0.00016137,2]
[395213077,1764547841592,-150.0,0.00016137,2]
[395213079,1764547841602,-150.0,0.00016137,2]
[395213081,1764547841614,-150.0,0.00016137,2]
[395213083,1764547841625,-150.0,0.00016137,2]
[395213084,1764547841634,-150.0,0.00016137,2]
[395213087,1764547841644,-150.0,0.00016137,2]
[395213088,1764547841654,-1172.64608794,0.00016139,2]
[395213091,1764547841665,-500.0,0.00016148,2]
[395213093,1764547841675,-500.0,0.00016148,2]
[395213094,1764547841691,-500.0,0.00016148,2]
[395213096,1764547841701,-150.0,0.00016149,2]
[395213098,1764547841711,-4203.158933,0.00016149,2]
[395213100,1764547841721,-300.0,0.00016149,2]
[395213102,1764547841730,-322.6107,0.00016149,2]
[395213104,1764547841740,-500.0,0.00016149,2]
[395213106,1764547841749,-151.0,0.00016149,2]
[395213108,1764547841758,-500.0,0.00016149,2]
[395213110,1764547841768,-1000.0,0.00016149,2]
[395213112,1764547841778,-151.0,0.00016149,2]
[395213115,1764547841792,-234.66589441,0.00016149,2]
[395213117,1764547841802,-500.0,0.00016149,2]
[395213119,1764547841812,-1000.0,0.00016149,2]
[395213121,1764547841823,-151.0,0.00016149,2]
[395213123,1764547841833,-500.0,0.00016149,2]
[395213125,1764547841842,-1000.0,0.00016149,2]
[395213127,1764547841852,-151.0,0.00016149,2]
[395213129,1764547841862,-500.0,0.00016149,2]
[395213131,1764547841871,-1000.0,0.00016149,2]
[395213133,1764547841881,-151.0,0.00016149,2]
[395213135,1764547841891,-500.0,0.00016149,2]
[395213137,1764547841900,-1000.0,0.00016149,2]
[395213139,1764547841909,-151.0,0.00016149,2]
[395213141,1764547841919,-500.0,0.00016149,2]
[395213142,1764547841932,-151.0,0.00016149,2]
[395213144,1764547841942,-1000.0,0.00016149,2]
[395213146,1764547841951,-500.0,0.00016149,2]
[395213148,1764547841960,-151.0,0.00016149,2]
[395213150,1764547841971,-1000.0,0.00016149,2]
[395213152,1764547841980,-500.0,0.00016149,2]
[395213154,1764547841990,-151.0,0.00016149,2]
[395213156,1764547842000,-1000.0,0.00016149,2]
[395213158,1764547842011,-500.0,0.00016149,2]
[395213161,1764547842026,-194.72792766,0.00016149,2]
[395213163,1764547842036,-151.0,0.00016149,2]
[395213165,1764547842046,-1000.0,0.00016149,2]
[395213167,1764547842057,-500.0,0.00016149,2]
[395213169,1764547842066,-151.0,0.00016149,2]
[395213171,1764547842076,-1000.0,0.00016149,2]
[395213173,1764547842085,-500.0,0.00016149,2]
[395213175,1764547842095,-151.0,0.00016149,2]
[395213177,1764547842105,-1000.0,0.00016149,2]
[395213179,1764547842115,-500.0,0.00016149,2]
[395213181,1764547842124,-151.0,0.00016149,2]
[395213182,1764547842133,-1000.0,0.00016149,2]
[395213185,1764547842144,-151.0,0.00016149,2]
[395213186,1764547842153,-1000.0,0.00016149,2]
[395213188,1764547842162,-1000.0,0.00016149,2]
[395213190,1764547842172,-1000.0,0.00016149,2]
[395213193,1764547842189,-1000.0,0.00016149,2]
[395213194,1764547842198,-500.0,0.00016149,2]
[395213196,1764547842209,-1000.0,0.00016149,2]
[395213199,1764547842219,-500.0,0.00016149,2]
[395213200,1764547842228,-1000.0,0.00016149,2]
[395213202,1764547842238,-500.0,0.00016149,2]
[395213204,1764547842247,-1000.0,0.00016149,2]
[395213207,1764547842257,-500.0,0.00016149,2]
[395213208,1764547842266,-1000.0,0.00016149,2]
[395213210,1764547842276,-500.0,0.00016149,2]
[395213212,1764547842285,-151.0,0.00016149,2]
[395213214,1764547842295,-1000.0,0.00016149,2]
[395213216,1764547842305,-500.0,0.00016149,2]
[395213218,1764547842314,-151.0,0.00016149,2]
[395213220,1764547842323,-500.0,0.00016149,2]
[395213222,1764547842333,-1000.0,0.00016149,2]
[395213224,1764547842343,-500.0,0.00016149,2]
[395213226,1764547842353,-151.0,0.00016149,2]
[395213228,1764547842363,-151.0,0.00016149,2]
[395213230,1764547842372,-1000.0,0.00016149,2]
[395213232,1764547842382,-500.0,0.00016149,2]
[395213235,1764547842392,-151.0,0.00016149,2]
[395213237,1764547842402,-1000.0,0.00016149,2]
[395213238,1764547842411,-500.0,0.00016149,2]
[395213240,1764547842421,-194.72792766,0.00016149,2]
[395213242,1764547842435,-151.0,0.00016149,2]
[395213245,1764547842446,-1000.0,0.00016149,2]
[395213246,1764547842456,-500.0,0.00016149,2]
[395213249,1764547842465,-151.0,0.00016149,2]
[395213251,1764547842475,-1000.0,0.00016149,2]
[395213253,1764547842484,-500.0,0.00016149,2]
[395213254,1764547842494,-151.0,0.00016149,2]
[395213256,1764547842504,-500.0,0.00016149,2]
[395213259,1764547842514,-151.0,0.00016149,2]
[395213260,1764547842523,-500.0,0.00016149,2]
[395213262,1764547842533,-151.0,0.00016149,2]
[395213265,1764547842543,-151.0,0.00016149,2]
[395213267,1764547842553,-151.0,0.00016149,2]
[395213269,1764547842563,-151.0,0.00016149,2]
[395213271,1764547842572,-151.0,0.00016149,2]
[395213273,1764547842582,-250.0,0.00016149,2]
[395213274,1764547842592,-250.0,0.00016149,2]
[395213276,1764547842602,-500.0,0.00016149,2]
[395213278,1764547842613,-250.0,0.00016149,2]
[395213280,1764547842623,-500.0,0.00016149,2]
[395213282,1764547842634,-250.0,0.00016149,2]
[395213285,1764547842644,-767.61793263,0.00016149,2]
[395213287,1764547842655,-500.0,0.00016149,2]
[395213289,1764547842665,-250.0,0.00016149,2]
[395213291,1764547842674,-500.0,0.00016149,2]
[395213292,1764547842688,-250.0,0.00016149,2]
[395213294,1764547842697,-500.0,0.00016149,2]
[395213296,1764547842707,-250.0,0.00016149,2]
[395213298,1764547842718,-500.0,0.00016149,2]
[395213301,1764547842739,-250.0,0.00016149,2]
[395213303,1764547842750,-151.0,0.00016149,2]
[395213305,1764547842760,-500.0,0.00016149,2]
[395213306,1764547842770,-250.0,0.00016149,2]
[395213309,1764547842780,-250.0,0.00016149,2]
[395213310,1764547842790,-250.0,0.00016149,2]
[395213312,1764547842800,-500.0,0.00016149,2]
[395213314,1764547842812,-250.0,0.00016149,2]
[395213317,1764547842821,-500.0,0.00016149,2]
[395213319,1764547842831,-250.0,0.00016149,2]
[395213320,1764547842841,-250.0,0.00016149,2]
[395213322,1764547842850,-500.0,0.00016149,2]
[395213325,1764547842860,-250.0,0.00016149,2]
[395213326,1764547842869,-250.0,0.00016149,2]
[395213328,1764547842879,-500.0,0.00016149,2]
[395213330,1764547842888,-250.0,0.00016149,2]
[395213332,1764547842898,-250.0,0.00016149,2]
[395213334,1764547842907,-500.0,0.00016149,2]
[395213337,1764547842917,-250.0,0.00016149,2]
[395213339,1764547842926,-500.0,0.00016149,2]
[395213341,1764547842940,-250.0,0.00016149,2]
[395213343,1764547842949,-620.0,0.00016149,2]
[395213345,1764547842959,-160.0,0.00016149,2]
[395213347,1764547842969,-250.0,0.00016149,2]
[395213349,1764547842978,-250.0,0.00016149,2]
[395213351,1764547842990,-250.0,0.00016149,2]
[395213353,1764547843001,-250.0,0.00016149,2]
[395213355,1764547843016,-8000.0,0.00016149,2]
[395213357,1764547843030,-250.0,0.00016149,2]
[395213360,1764547843042,-8000.0,0.00016149,2]
[395213362,1764547843056,-250.0,0.00016149,2]
[395213364,1764547843067,-8000.0,0.00016149,2]
[395213366,1764547843079,-250.0,0.00016149,2]
[395213368,1764547843090,-578.20924308,0.00016149,2]
[395213370,1764547843104,-8000.0,0.00016149,2]